Cogmind - Beta 13 @@@ ROGUE MODE // 2024.03.09 @ 18:50:46 Player: eveschains Result: Destroyed by G-67 Veteran with Plasma Rifle Performance ------------- Evolutions (6) 3000 Regions Visited (11) 2200 Robots Destroyed (157) 785 Value Destroyed (7073) 7073 Prototype IDs (21) 420 Alien Tech Used (0) 0 Bonus (1292) 1292 TOTAL SCORE: 14770 Bonus ------- High Alert Combat Kills 1057 Follower Combat Kills 1322 Entered DSFs 500 Built Enhanced Grunts 300 Met R17 at Cetus 500 Friendly Fire -2387 Cogmind --------- Core Integrity 0/1150 Matter 300/300 Energy 98/100 System Corruption 20% Temperature Cool (12) Movement Core (4050) Ox80 Location -4/Factory Parts ------- > --- POWER (1) -------- (None) > --- PROPULSION (5) --- (None) > --- UTILITY (7) ------ Advanced Heat Sink Huge Storage Unit Huge Storage Unit Huge Storage Unit Advanced Melee Analysis Suite > --- WEAPON (6) ------- (None) > --- INVENTORY (25) --- Improved Weapon Cycler Improved Thermal Shield Experimental Thermal Shield Peak State ------------ > --- POWER ------------ Micro Fission Core > --- PROPULSION ------- Medium Treads Medium Treads Centrium Heavy Treads > --- UTILITY ---------- Experimental Cooling System Huge Storage Unit Energy Well Enhanced Optical Array Improved Melee Analysis Suite Advanced Melee Analysis Suite Microactuators > --- WEAPON ----------- Improved Arc Projector Neutron Cannon Railgun Advanced KE Penetrator Advanced KE Penetrator Rocket Array > --- INVENTORY -------- Fusion Compressor Micro Fission Core Improved Heat Sink Huge Storage Unit Huge Storage Unit Medium Matter Pod Advanced Sensor Array Improved Weapon Cycler Centrium Medium Armor Plating Improved Thermal Shield Experimental Thermal Shield EM Disruption Field Advanced Field Recycling Unit Wave Gun Wave Gun KE Penetrator Impact Mace Impact Mace Axe Spear Spear Spear Spear Spear [Rating: 116] Favorites ----------- Power Micro Fission Core Engine Cooled Deuterium Engine Power Core Micro Fission Core Reactor Light Quantum Reactor Propulsion Wheel Treads Improved Medium Treads Leg Flexi-carbon Leg Wheel Wheel Hover Unit Antigrav System Utility Huge Storage Unit Device Improved Heat Sink Storage Huge Storage Unit Processor Advanced Visual Processing Unit Protection Medium Reflective Plating Weapon Spear Energy Gun Thermic Laser Energy Cannon Particle Cannon Ballistic Gun Enhanced Autogun Ballistic Cannon Enhanced Gauss Cannon Launcher Rocket Array Impact Weapon Impact Mace Slashing Weapon Great Axe Piercing Weapon Spear Build | -11 -10 -9 -8 -7 -7 -6 -6 -5 -5 -5 -4 ------- Run | Yrd Mat Mat Mat Fac Sto Fac DSF Fac Ext Cet Fac Slots Evolved 12 | . . 2 2 2 . 2 . 2 . . 2 Power . | . . . . . . . . . . . . Propulsion 3 | . . 1 . . . . . 2 . . . Utility 5 | . . . 1 1 . 1 . . . . 2 Weapon 4 | . . 1 1 1 . 1 . . . . . Parts Attached 230 | 6 5 12 23 1 17 3 18 59 13 11 62 Power 21 | 1 . 2 2 . 1 . 1 5 . 2 7 Engine 9 | 1 . 2 2 . 1 . 1 2 . . . Core 9 | . . . . . . . . 3 . 1 5 Reactor 3 | . . . . . . . . . . 1 2 Propulsion 54 | 2 1 4 4 . . 1 6 16 5 3 12 Treads 23 | 1 . 1 1 . . 1 6 9 . 2 2 Leg 7 | . . . . . . . . . . . 7 Wheel 23 | 1 1 3 3 . . . . 7 5 1 2 Hover 1 | . . . . . . . . . . . 1 Flight . | . . . . . . . . . . . . Utility 55 | 1 4 1 4 . 2 1 2 24 2 1 13 Device 36 | . . 1 3 . 1 . 2 21 . 1 7 Storage 9 | 1 3 . . . . . . 1 1 . 3 Processor 4 | . . . . . 1 . . 1 . . 2 Hackware . | . . . . . . . . . . . . Protection 6 | . 1 . 1 . . 1 . 1 1 . 1 Artifact . | . . . . . . . . . . . . Weapon 100 | 2 . 5 13 1 14 1 9 14 6 5 30 Energy Gun 24 | 1 . 2 3 . 4 1 2 5 . 1 5 Energy Cannon 7 | . . 2 2 . . . . . . 1 2 Ballistic Gun 25 | 1 . 1 7 1 4 . 1 2 . 1 7 Ballistic Cannon 5 | . . . 1 . 1 . 3 . . . . Launcher 13 | . . . . . 3 . 3 1 2 2 2 Special Weapon . | . . . . . . . . . . . . Impact Weapon 7 | . . . . . 2 . . 2 . . 3 Slashing Weapon 5 | . . . . . . . . . 2 . 3 Piercing Weapon 14 | . . . . . . . . 4 2 . 8 Special Melee Weapon . | . . . . . . . . . . . . Unidentified Prototypes 14 | . . . 2 . 7 . . . . 3 2 Parts Lost 88 | . . 2 4 . 1 . 6 15 5 7 48 Power 8 | . . . . . . . . 2 . 1 5 Propulsion 32 | . . 1 3 . 1 . 2 4 3 4 14 Utility 22 | . . . . . . . 2 6 2 1 11 Weapon 26 | . . 1 1 . . . 2 3 . 1 18 Highest Loss Streak 27 | . . 2 4 . 1 . 3 2 3 6 27 To Critical Strikes 2 | . . . . . . . . 1 . 1 . Average Slot Usage (%) 93 | . 98 96 98 92 92 100 86 97 97 93 77 Engine 4 | . 14 11 9 7 7 6 5 2 . . . Core 1 | . . . . . . . . 2 5 3 2 Treads 10 | . 2 5 2 . . 6 16 23 . 5 9 Wheel 12 | . 25 26 23 23 15 13 2 3 28 16 1 Device 11 | . . 2 14 15 15 13 8 15 10 10 8 Storage 7 | . 14 11 9 7 7 6 6 4 5 11 7 Processor 5 | . . . . . 6 6 6 5 5 5 9 Protection 2 | . 11 8 3 . . 6 3 . 3 . 2 Energy Gun 9 | . 14 12 9 7 14 20 13 13 . 4 1 Energy Cannon 1 | . . 7 6 7 . . . . . 1 . Ballistic Gun 6 | . 14 11 13 23 12 6 6 4 . . 2 Ballistic Cannon 3 | . . . 6 . . . 7 9 . . . Launcher 1 | . . . . . 1 . 6 . 1 5 . Impact Weapon 4 | . . . . . 7 13 1 . 11 10 7 Slashing Weapon 1 | . . . . . . . . . 4 9 6 Piercing Weapon 4 | . . . . . . . . 4 16 . 8 Naked Turns . | . . . . . . . . . . . . Heaviest Build 268 | 12 90 102 113 111 123 118 130 146 132 137 268 Greatest Support 156 | 10 20 30 30 30 30 20 90 156 62 62 136 Greatest Overweight (x) 16 | 1 8 9 5 3 6 5 12 4 3 6 16 Average Overweight (x) 2 | . 3 3 3 3 4 5 2 . 1 3 1 Largest Inventory Capacity 25 | 8 25 25 25 25 25 25 25 25 25 25 25 Average Capacity 24 | 6 24 25 25 25 25 25 25 24 25 25 25 Most Carried 25 | 6 16 25 25 24 25 23 25 25 25 24 25 Average Carried 22 | 3 11 20 24 24 24 21 23 23 24 20 23 Final Capacity 25 | 8 25 25 25 25 25 25 25 25 25 25 25 Final Carried 25 | 6 16 25 25 24 24 21 25 25 24 24 3 Class Distribution -------------------- 31% | Scavenger-Gladiator 25% | Executioner 20% | Tank 5% | Scavenger-Tank 5% | Scavenger-Executioner 4% | Mutant Dominant Class ---------------- Mutant | -10/Materials Tank | -9/Materials Scavenger-Tank | -8/Materials Scavenger-Tank | -7/Factory Tank | -7/Storage Tank | -6/Factory Executioner | -6/DSF Executioner | -5/Factory Scavenger-Gladiator | -5/Extension Scavenger-Gladiator | -5/Cetus Scavenger-Gladiator | -4/Factory Resources | -11 -10 -9 -8 -7 -7 -6 -6 -5 -5 -5 -4 ----------- Run | Yrd Mat Mat Mat Fac Sto Fac DSF Fac Ext Cet Fac Matter Collected 4440 | 219 82 233 537 . 404 . 298 1414 308 290 655 Remotely . | . . . . . . . . . . . . Salvage Created 7515 | . 82 391 528 . 996 . 558 1636 1032 300 1992 Parts 330 | . 5 20 31 . 54 . 23 68 35 16 78 Haulers Intercepted 9 | . . 3 1 . 2 . . 3 . . . Recyclers Shooed 6 | . . . . . . . . 5 1 . . Parts Field Recycled 2 | . . . . . . . . 2 . . . Retrieved Matter 32 | . . . . . . . . 32 . . . Parts Self-Destructed . | . . . . . . . . . . . . Prevented . | . . . . . . . . . . . . Kills | -11 -10 -9 -8 -7 -7 -6 -6 -5 -5 -5 -4 ------- Run | Yrd Mat Mat Mat Fac Sto Fac DSF Fac Ext Cet Fac Combat Hostiles Destroyed 110 | . 2 5 9 . 17 . 9 19 17 6 26 Melee 31 | . . . . . 1 . . 3 8 . 19 Guns 24 | . 2 3 3 . 6 . 3 4 . . 3 Cannons 19 | . . 2 6 . . . 1 9 . . 1 AOE 30 | . . . . . 10 . 5 1 7 6 1 Classes Destroyed 19 | . 1 4 2 . 5 . 3 1 1 . 2 Worker 9 | . . 1 . . . . . 6 . . 2 Builder 9 | . . . . . . . . 1 2 . 6 Tunneler 2 | . . . 1 . . . . . . . 1 Hauler 9 | . . 3 1 . 2 . . 3 . . . Recycler 5 | . . . . . 1 . . 2 2 . . Mechanic 2 | . . . . . 1 . . . . . 1 Operator 2 | . . . . . . . . . 1 . 1 Watcher 4 | . . . 1 . . . . 1 . 1 1 Cutter 3 | . . . . . . . 3 . . . . Grunt 53 | . 2 3 5 . 12 . . . 9 5 17 Brawler 3 | . . 1 . . . . . . 1 . 1 Duelist 2 | . . . . . 1 . . . 1 . . Protector 1 | . . . . . . . . . . . 1 Sentry 15 | . . 1 4 . 3 . . 5 2 . . Demolisher 1 | . . . . . . . . . . . 1 Specialist 3 | . . . . . 1 . 2 . . . . Hunter 7 | . . . . . . . 2 3 . . 2 Programmer 19 | . . . . . 3 . 1 11 . . 4 Heavy 1 | . . . . . . . 1 . . . . Cetus Guard 1 | . . . . . . . . . . 1 . Enhanced Grunt 1 | . . . . . . . . . . 1 . Thug 2 | . . . . . 1 . . . 1 . . Savage 1 | . . . . . . . . . 1 . . Butcher 1 | . . . . . . . . . 1 . . Guerrilla 1 | . . . . . . . . . 1 . . Best Kill Streak 11 | . 1 2 3 . 11 . 4 4 5 5 8 Combat Bots Only 10 | . 1 2 2 . 10 . 4 2 5 5 5 Max Kills in Single Turn 13 | . 1 1 1 . 13 . 2 3 3 4 7 Gunslinging . | . . . . . . . . . . . . Exploded 9 | . . . . . 9 . 2 1 3 4 1 Melee 1 | . . . . . 1 . . 1 1 . 1 Uniques/NPCs Destroyed . | . . . . . . . . . . . . Combat | -11 -10 -9 -8 -7 -7 -6 -6 -5 -5 -5 -4 -------- Run | Yrd Mat Mat Mat Fac Sto Fac DSF Fac Ext Cet Fac Hostile Shots Fired 897 | . 7 38 45 . 44 . 94 177 42 22 428 Missed 240 | . 2 10 6 . 15 . 28 48 11 7 113 Damage Taken 13314 | . 75 377 638 . 361 . 1389 2384 624 513 6953 Core 2025 | . 18 74 66 . 50 . 183 239 92 136 1167 Absorbed by Shields 621 | . . . 34 . 137 . 72 209 60 109 . Redirected to Shielding 42 | . . . 42 . . . . . . . . Ignored by Resistances 89 | . . . . . . . . . 44 3 42 Regen/Repaired (Parts) 206 | . . . . . . . . 206 . . . Core Remaining (%) 83 | 100 92 81 88 . 92 . 78 . . 53 . Volleys Fired 175 | . 6 30 28 . 23 . 16 43 7 9 13 Largest 6 | . 2 3 4 . 5 . 6 6 2 2 6 Hottest 397 | . 60 159 203 . 207 . 294 397 81 126 305 Shots Fired 586 | . 12 89 89 . 86 . 63 178 9 14 46 Gun 401 | . 12 77 46 . 78 . 42 103 . 4 39 Cannon 147 | . . 12 43 . 3 . 10 73 . . 6 Launcher 38 | . . . . . 5 . 11 2 9 10 1 Special . | . . . . . . . . . . . . Kinetic 290 | . 6 30 53 . 54 . 20 100 . . 27 Thermal 217 | . 6 59 28 . 19 . 30 59 . 4 12 Explosive 29 | . . . . . 3 . 4 2 9 10 1 Electromagnetic 50 | . . . 8 . 10 . 9 17 . . 6 Robot Hit Streak 19 | . 6 13 9 . 13 . 8 19 4 2 8 Robot Miss Streak 5 | . 1 2 5 . 5 . 3 5 3 4 2 Penetration Max 1 | . . . . . . . . 1 . . 1 Secondary Targets . | . . . . . . . . . . . . Shots Hit Robots 508 | . 9 58 53 . 48 . 27 125 47 2 139 Core Hits 435 | . 5 15 21 . 66 . 38 62 57 104 67 Critical Kills 4 | . . . . . 1 . . . . . 3 Critical Parts Destroyed 12 | . . . . . . . . 1 3 . 8 Critical Strikes 50 | . . . 1 . 3 . 2 15 5 . 24 Burn 10 | . . . 1 . 1 . 2 6 . . . Destroy 2 | . . . . . . . . . . . 2 Blast 6 | . . . . . . . . 6 . . . Corrupt 1 | . . . . . 1 . . . . . . Smash 14 | . . . . . 1 . . 1 3 . 9 Sever 9 | . . . . . . . . . . . 9 Impale 8 | . . . . . . . . 2 2 . 4 Melee Attacks 326 | . . . . . 4 . . 38 155 . 129 Impact 111 | . . . . . 4 . . 2 79 . 26 Slashing 80 | . . . . . . . . . 18 . 62 Piercing 135 | . . . . . . . . 36 58 . 41 Sneak Attacks 20 | . . . . . 1 . . 7 6 . 6 Combat Hostiles . | . . . . . . . . . . . . Follow-up Attacks 83 | . . . . . . . . 11 24 . 48 Damage Inflicted 21566 | . 87 658 1016 . 2472 . 2090 4097 2918 2502 5726 Guns 4617 | . 87 577 530 . 850 . 510 1261 . . 802 Cannons 2350 | . . 81 486 . 48 . 185 1474 . . 76 Explosions 7006 | . . . . . 1398 . 1395 348 1084 2502 279 Melee 7593 | . . . . . 176 . . 1014 1834 . 4569 Ramming . | . . . . . . . . . . . . Kinetic 4090 | . 46 168 620 . 495 . 299 1855 . . 607 Thermal 3306 | . 41 490 323 . 737 . 557 958 . . 200 Explosive 5595 | . . . . . 807 . 772 151 1084 2502 279 Electromagnetic 982 | . . . 73 . 257 . 462 119 . . 71 Impact 2374 | . . . . . 176 . . 88 958 . 1152 Slashing 2554 | . . . . . . . . . 255 . 2299 Piercing 2665 | . . . . . . . . 926 621 . 1118 Highest Corruption 20 | . . . . . . . 1 8 5 5 20 Average Corruption 4 | . . . . . . . 1 2 5 5 9 Corruption Purged 14 | . . . . . . . . 14 . . . Corruption Blocked . | . . . . . . . . . . . . Effects 88 | . . . . . . . . 24 18 8 38 Message Errors 20 | . . . . . . . . 5 4 1 10 Matter Fused 24 | . . . . . . . . 5 7 2 10 Heat Flow Errors 13 | . . . . . . . . 4 2 2 5 Energy Discharges 12 | . . . . . . . . 1 4 1 6 Parts Rejected 1 | . . . . . . . . 1 . . . Parts Fused 1 | . . . . . . . . . . . 1 Data Loss (minor) 9 | . . . . . . . . 5 . . 4 Data Loss (major) 2 | . . . . . . . . 1 . 1 . Misfires 2 | . . . . . . . . 1 . 1 . Alerts 2 | . . . . . . . . 1 1 . . Misdirections 1 | . . . . . . . . . . . 1 Weapon Failures 1 | . . . . . . . . . . . 1 Overload Shots . | . . . . . . . . . . . . Overflow Damage 1185 | . . . . . 24 . 18 197 243 . 703 Projectiles 52 | . . . . . . . 18 34 . . . Explosions 147 | . . . . . 24 . . 123 . . . Melee 986 | . . . . . . . . 40 243 . 703 Knockbacks 24 | . . . 3 . . . 2 8 5 . 6 Impact 9 | . . . . . . . . . 3 . 6 Kinetic 13 | . . . 3 . . . 2 8 . . . Secondary 2 | . . . . . . . . . 2 . . Self-Inflicted Damage 543 | . . . . . 106 . 129 130 28 150 . Shots 18 | . . . . . 4 . 4 2 1 7 . Rammed . | . . . . . . . . . . . . Targets Rammed . | . . . . . . . . . . . . Kicked . | . . . . . . . . . . . . Crushed . | . . . . . . . . . . . . Highest Temperature 650 | . 115 325 564 . 283 . 234 650 176 271 434 Average Temperature 151 | . 49 140 232 . 91 . 83 173 92 123 154 Received Heat Transfer 2491 | . 42 186 351 . 54 . . 98 231 57 1472 Effects 29 | . . 2 12 . . . . 12 . . 3 Shutdowns 6 | . . 1 2 . . . . 3 . . . Energy Bleed 2 | . . . 2 . . . . . . . . Interference 14 | . . 1 5 . . . . 5 . . 3 Matter Decay 2 | . . . . . . . . 2 . . . Short Circuit 3 | . . . 2 . . . . 1 . . . Damage (minor) 2 | . . . 1 . . . . 1 . . . Siege Activations . | . . . . . . . . . . . . Robots Corrupted 1 | . . . . . . . 1 . . . . Combat Hostiles . | . . . . . . . . . . . . Parts Fried 15 | . . . . . . . 2 2 7 . 4 Impact Corruptions 24 | . . . . . . . . 1 8 . 15 Robots Melted 2 | . . . . . . . . 2 . . . Combat Hostiles 1 | . . . . . . . . 1 . . . Parts Melted 17 | . . 2 . . 1 . 3 10 . . 1 Heat Transferred 7227 | . 100 1071 666 . 1221 . 1400 2675 . . 94 Parts Sabotaged 2 | . . . . . . . . . . . 2 Parts Stolen . | . . . . . . . . . . . . Parts Stripped . | . . . . . . . . . . . . Power Chain Reactions 6 | . . . . . 3 . 2 1 . . . Alert | -11 -10 -9 -8 -7 -7 -6 -6 -5 -5 -5 -4 ------- Run | Yrd Mat Mat Mat Fac Sto Fac DSF Fac Ext Cet Fac Peak Influence 1129 | . 85 195 212 . 423 90 337 377 662 1129 1034 Initial 632 | . . 35 2 . . 90 63 176 184 303 632 Average 337 | . 27 84 69 . 254 90 237 202 395 662 903 Maximum Alert Level 4 | . . . 1 . 2 . 1 1 2 4 3 Low Security (%) 43 | 100 100 100 95 100 33 100 39 57 8 . . Level 1 30 | . . . 4 . 42 . 60 42 50 54 . Level 2 9 | . . . . . 23 . . . 40 3 7 Level 3 15 | . . . . . . . . . . 25 92 Level 4 . | . . . . . . . . . . 15 . Level 5 . | . . . . . . . . . . . . High Security . | . . . . . . . . . . . . Max Security . | . . . . . . . . . . . . Sterilizations 1 | . . . . . . . 1 . . . . Squads Dispatched 29 | . . . . . 6 . 3 9 2 1 8 Investigation 3 | . . . . . . . . 2 . 1 . Extermination 9 | . . . . . 2 . . 5 . . 2 Reinforcement 10 | . . . . . 2 . 3 2 1 . 2 Assault 6 | . . . . . 2 . . . 1 . 3 Garrison 1 | . . . . . . . . . . . 1 Intercept . | . . . . . . . . . . . . Searches Triggered . | . . . . . . . . . . . . Construction Impeded 2 | . . . . . . . . 2 . . . Haulers Reinforced 2 | . . . . . 2 . . . . . . Active Scanning Responses . | . . . . . . . . . . . . Cargo Convoy Interrupts . | . . . . . . . . . . . . Stealth | -11 -10 -9 -8 -7 -7 -6 -6 -5 -5 -5 -4 --------- Run | Yrd Mat Mat Mat Fac Sto Fac DSF Fac Ext Cet Fac Distress Signals 9 | . . . 2 . 3 . . 3 1 . . Communications Jammed . | . . . . . . . . . . . . Distress Signals . | . . . . . . . . . . . . Times Spotted 176 | . 5 7 12 . 21 . 13 28 24 23 43 Peak Tracking Total 9 | . 3 3 3 . 9 . 3 3 5 5 9 Tactical Retreats 8 | . 1 . . . . . 4 . 2 . 1 Traps | -11 -10 -9 -8 -7 -7 -6 -6 -5 -5 -5 -4 ------- Run | Yrd Mat Mat Mat Fac Sto Fac DSF Fac Ext Cet Fac Traps Triggered 10 | . . . . . . . 1 4 5 . . Indirectly 1 | . . . . . . . 1 . . . . Trap Hack Attempts . | . . . . . . . . . . . . Triggered . | . . . . . . . . . . . . Disarmed 4 | . . . . . . . . . 4 . . Reprogrammed . | . . . . . . . . . . . . Reused . | . . . . . . . . . . . . Traps Extracted . | . . . . . . . . . . . . Installed . | . . . . . . . . . . . . Triggered . | . . . . . . . . . . . . Machines | -11 -10 -9 -8 -7 -7 -6 -6 -5 -5 -5 -4 ---------- Run | Yrd Mat Mat Mat Fac Sto Fac DSF Fac Ext Cet Fac Machines Disabled 26 | . . 1 1 . 5 . . 8 9 1 1 Max in Single Turn 3 | . . 1 1 . 3 . . 2 1 . . Garrison Access 1 | . . . . . . . . . . . 1 Machines Repaired . | . . . . . . . . . . . . Machines Dismantled . | . . . . . . . . . . . . Machines Sabotaged . | . . . . . . . . . . . . Overloaded Fab Kills . | . . . . . . . . . . . . Hacking | -11 -10 -9 -8 -7 -7 -6 -6 -5 -5 -5 -4 --------- Run | Yrd Mat Mat Mat Fac Sto Fac DSF Fac Ext Cet Fac Machines Accessed 27 | . 3 . 2 1 5 1 . 5 6 2 2 Terminals 25 | . 3 . 2 1 5 1 . 3 6 2 2 Fabricators 1 | . . . . . . . . 1 . . . Repair Stations 1 | . . . . . . . . 1 . . . Recycling Units . | . . . . . . . . . . . . Scanalyzers . | . . . . . . . . . . . . Garrison Access . | . . . . . . . . . . . . Total Hacks 61 | . 7 . 5 1 8 2 . 19 10 5 4 Successful 20 | . 2 . 4 . 1 1 . 6 3 1 2 Failed 41 | . 5 . 1 1 7 1 . 13 7 4 2 Catastrophic 10 | . . . . 1 3 . . 2 3 . 1 Database Lockouts . | . . . . . . . . . . . . Manual 17 | . 2 . 2 1 4 . . 5 . 2 1 Terminals 55 | . 7 . 5 1 8 2 . 13 10 5 4 Fabricators 2 | . . . . . . . . 2 . . . Repair Stations 4 | . . . . . . . . 4 . . . Recycling Units . | . . . . . . . . . . . . Scanalyzers . | . . . . . . . . . . . . Garrison Access . | . . . . . . . . . . . . Terminal Hacks 18 | . 2 . 4 . 1 1 . 4 3 1 2 Record 1 | . . . . . . . . . . 1 . Prototype ID Bank 3 | . 1 . . . . . . 1 . . 1 Open Door 1 | . . . . . 1 . . . . . . Open DSF 3 | . . . . . . 1 . 1 . . 1 Alert Level 4 | . . . 2 . . . . 1 1 . . Unreport Threat 1 | . . . 1 . . . . . . . . Locate Traps 1 | . 1 . . . . . . . . . . Disarm Traps 1 | . . . . . . . . . 1 . . Dispatch Records 1 | . . . 1 . . . . . . . . Recall Investigation 1 | . . . . . . . . . 1 . . Zone Layout 1 | . . . . . . . . 1 . . . Fabricator Hacks . | . . . . . . . . . . . . Repair Station Hacks 2 | . . . . . . . . 2 . . . Scan Component 1 | . . . . . . . . 1 . . . Repair 1 | . . . . . . . . 1 . . . Recycling Unit Hacks . | . . . . . . . . . . . . Scanalyzer . | . . . . . . . . . . . . Garrison Access Hacks . | . . . . . . . . . . . . Unauthorized Hacks . | . . . . . . . . . . . . Terminals . | . . . . . . . . . . . . Fabricators . | . . . . . . . . . . . . Repair Stations . | . . . . . . . . . . . . Recycling Units . | . . . . . . . . . . . . Scanalyzers . | . . . . . . . . . . . . Garrison Access . | . . . . . . . . . . . . Data Cores Recovered . | . . . . . . . . . . . . Used . | . . . . . . . . . . . . Hacking Detections 26 | . 3 . 2 1 4 1 . 4 6 3 2 Full Trace Events 2 | . . . . . . . . 1 . 1 . Feedback Events . | . . . . . . . . . . . . Feedback Blocked . | . . . . . . . . . . . . Robot Schematics Acquired . | . . . . . . . . . . . . Robots Built . | . . . . . . . . . . . . Authchips . | . . . . . . . . . . . . Time . | . . . . . . . . . . . . Total Robot Build Rating . | . . . . . . . . . . . . Part Schematics Acquired . | . . . . . . . . . . . . Parts Built . | . . . . . . . . . . . . Authchips . | . . . . . . . . . . . . Time . | . . . . . . . . . . . . Total Part Build Rating . | . . . . . . . . . . . . Parts Repaired 1 | . . . . . . . . 1 . . . Time 26 | . . . . . . . . 26 . . . Parts Recycled . | . . . . . . . . . . . . Recycled Matter . | . . . . . . . . . . . . Retrieved Matter . | . . . . . . . . . . . . Retrieved Components . | . . . . . . . . . . . . Parts Scanalyzed . | . . . . . . . . . . . . Part Schematics Acquired . | . . . . . . . . . . . . Parts Damaged . | . . . . . . . . . . . . Bothacking | -11 -10 -9 -8 -7 -7 -6 -6 -5 -5 -5 -4 ------------ Run | Yrd Mat Mat Mat Fac Sto Fac DSF Fac Ext Cet Fac Used RIF Installer . | . . . . . . . . . . . . Robots Hacked . | . . . . . . . . . . . . Non-combat . | . . . . . . . . . . . . Combat . | . . . . . . . . . . . . Robot Hacks Applied . | . . . . . . . . . . . . Relay Couplers Released . | . . . . . . . . . . . . Fabnet Peak Effective % . | . . . . . . . . . . . . Robots Rewired . | . . . . . . . . . . . . Allies Hacked . | . . . . . . . . . . . . Hacks Repelled . | . . . . . . . . . . . . Allies | -11 -10 -9 -8 -7 -7 -6 -6 -5 -5 -5 -4 -------- Run | Yrd Mat Mat Mat Fac Sto Fac DSF Fac Ext Cet Fac Total Allies 30 | . . . . . 12 . . . 13 5 . Largest Group 10 | . . . . . 10 . . . 4 7 4 Highest-Rated Group 670 | . . . . . 173 . . . 235 670 435 Highest-Rated Ally 159 | . . . . . 31 . . . 159 159 159 Total Orders . | . . . . . . . . . . . . Ally Attacks 182 | . . . . . 47 . . . 50 71 14 Total Damage 4482 | . . . . . 659 . . . 877 2006 940 Kills 31 | . . . . . 6 . . . 8 15 2 Allies Corrupted . | . . . . . . . . . . . . Allies Melted 1 | . . . . . . . . . 1 . . Intel | -11 -10 -9 -8 -7 -7 -6 -6 -5 -5 -5 -4 ------- Run | Yrd Mat Mat Mat Fac Sto Fac DSF Fac Ext Cet Fac Robot Analysis Total . | . . . . . . . . . . . . Derelict Logs Recovered . | . . . . . . . . . . . . Drone Launches . | . . . . . . . . . . . . Drone Recoveries . | . . . . . . . . . . . . Exploration | -11 -10 -9 -8 -7 -7 -6 -6 -5 -5 -5 -4 ------------- Run | Yrd Mat Mat Mat Fac Sto Fac DSF Fac Ext Cet Fac Turns Passed 7898 | 56 258 483 570 45 1211 61 384 2343 923 339 1225 Spaces Moved 3423 | 42 113 207 285 36 386 38 123 1003 534 207 449 Core 3 | 3 . . . . . . . . . . . Treads 1215 | . . . . . . . 96 801 . . 318 Legs 77 | . . . . . . . . . . . 77 Wheels 2128 | 39 113 207 285 36 386 38 27 202 534 207 54 Hover . | . . . . . . . . . . . . Flight . | . . . . . . . . . . . . Fastest Speed 50 | 50 95 125 125 125 125 155 155 110 103 103 120 Average Speed 152 | 89 139 132 133 125 148 155 225 175 106 134 181 Slowest Speed 540 | 100 200 215 155 125 170 155 260 242 125 170 540 Overloaded Moves . | . . . . . . . . . . . . Propulsion Burnouts . | . . . . . . . . . . . . Robots Hopped . | . . . . . . . . . . . . Cave-ins Triggered . | . . . . . . . . . . . . Exploration Rate (%) 31 | 4 26 28 22 2 54 1 78 22 63 74 9 Regions Visited 11 Branch Regions 3 Pre-discovered Areas . | . . . . . . . . . . . . Known Exits Taken 1 | . . . . . . 1 . . . . . Unknown Exits Taken 9 | 1 1 1 1 1 1 . . 1 1 1 . Scrap Searched . | . . . . . . . . . . . . Spaces Dug 5 | . . . . . 1 . . 2 . . 2 Terrain Destroyed 514 | . . . 6 . 34 . 27 74 186 157 30 Melee 4 | . . . . . 1 . . 1 . . 2 Projectile 56 | . . . 6 . . . . 34 . . 16 AOE 454 | . . . . . 33 . 27 39 186 157 12 Terrain Rammed . | . . . . . . . . . . . . Walls Destroyed . | . . . . . . . . . . . . Machines Disabled . | . . . . . . . . . . . . Actions | -11 -10 -9 -8 -7 -7 -6 -6 -5 -5 -5 -4 --------- Run | Yrd Mat Mat Mat Fac Sto Fac DSF Fac Ext Cet Fac Total 5425 | 57 201 358 424 36 990 40 186 1472 727 244 690 Wait 1112 | 4 68 80 51 . 523 . 24 249 41 13 59 Move 3412 | 41 112 206 284 35 385 37 122 1002 533 206 449 Hop . | . . . . . . . . . . . . Pick Up 147 | 6 9 18 15 . 13 . 5 55 3 3 20 Fast Attach 64 | 6 2 3 7 . 9 . 4 17 2 3 11 Attach 82 | . . 3 7 1 1 3 5 21 5 5 31 Detach 14 | . 1 . 2 . 1 . . 7 1 1 1 Swap 84 | . 3 6 9 . 7 . 9 21 6 3 20 Drop 112 | . . 12 21 . 25 . 1 33 3 1 16 Fire 175 | . 6 30 28 . 23 . 16 43 7 9 13 Melee 180 | . . . . . 3 . . 24 83 . 70 Ram . | . . . . . . . . . . . . Kick . | . . . . . . . . . . . . Crush . | . . . . . . . . . . . . Escape Stasis 43 | . . . . . . . . . 43 . . Rewire . | . . . . . . . . . . . . Trap . | . . . . . . . . . . . . Miscellaneous . | . . . . . . . . . . . . Route ------- -11/Scrapyard -10/Materials -9/Materials -8/Materials -7/Factory -7/Storage -6/Factory -6/DSF -5/Factory -5/Extension (discovered 2 exits: *Fac / *Cet) -5/Cetus (discovered 2 exits: *Fac / [*Arc]) -4/Factory History --------- Turn | Location | Event 11 | -11/Scrapyard | Discovered new exit (range 15) 57 | -11/Scrapyard | Entered Materials 292 | -10/Materials | Discovered new exit (range 16) 315 | -10/Materials | Entered another Materials area 315 | -9/Materials | Evolved 2 slots: Propulsion x1, Weapon x1 336 | -9/Materials | Build established: Mutant 742 | -9/Materials | Discovered new exit (range 16) 798 | -9/Materials | Entered another Materials area 798 | -8/Materials | Evolved 2 slots: Utility x1, Weapon x1 948 | -8/Materials | Lost 4 parts (3n1w) 1339 | -8/Materials | Discovered new exit (range 12) 1368 | -8/Materials | Entered Factory 1368 | -7/Factory | Evolved 2 slots: Utility x1, Weapon x1 1389 | -7/Factory | Build established: Scavenger-Tank 1407 | -7/Factory | Discovered new exit (range 5) 1413 | -7/Factory | Entered Storage 1732 | -7/Storage | Assisted by bots powering up and referring to "LRC-V3" 1868 | -7/Storage | Lost 3 allies 1870 | -7/Storage | Met a pair of Derelict thieves 1880 | -7/Storage | Found Prototype Launcher 1880 | -7/Storage | Identified Rocket Array 1886 | -7/Storage | Found Rocket Array 1944 | -7/Storage | Destroyed 10 combat bots 1954 | -7/Storage | Lost 8 allies 2178 | -7/Storage | Build established: Tank 2590 | -7/Storage | Discovered new exit (range 3) 2624 | -7/Storage | Entered Factory 2624 | -6/Factory | Evolved 2 slots: Utility x1, Weapon x1 2683 | -6/Factory | Identified exit to DSF 2685 | -6/Factory | Entered DSF 2715 | -6/DSF | Additional patrols routed to DSF 2812 | -6/DSF | Lost 3 parts (1n1u1w) 2953 | -6/DSF | Sterilization system engaged 2973 | -6/DSF | Ambient heat levels rising (+10) 2988 | -6/DSF | Ambient heat levels rising (+10) 2997 | -6/DSF | Discovered new exit (range 17) 3003 | -6/DSF | Ambient heat levels rising (+10) 3018 | -6/DSF | Ambient heat levels rising (+10) 3033 | -6/DSF | Ambient heat levels rising (+10) 3048 | -6/DSF | Ambient heat levels rising (+10) 3063 | -6/DSF | Ambient heat levels rising (+10) 3069 | -6/DSF | Entered Factory 3069 | -5/Factory | Evolved 2 slots: Propulsion x2 3188 | -5/Factory | Build established: Executioner 4572 | -5/Factory | Repaired Huge Storage Unit 5388 | -5/Factory | Discovered new exit (range 18) 5412 | -5/Factory | Entered Extension 5462 | -5/Extension | Build established: Scavenger-Gladiator 5529 | -5/Extension | Lost 3 parts (2n1u) 5567 | -5/Extension | Rescued a captive Derelict 5577 | -5/Extension | Rescued a captive Derelict 5616 | -5/Extension | Rescued a captive Derelict 5713 | -5/Extension | Rescued a captive Derelict 5867 | -5/Extension | Rescued a captive Derelict 5867 | -5/Extension | Rescued a captive Derelict 5897 | -5/Extension | Rescued a captive Derelict 5898 | -5/Extension | Lost 3 allies 5906 | -5/Extension | Spotted B-75 Beast 5959 | -5/Extension | Lost 3 allies 6012 | -5/Extension | First assault squad dispatched 6012 | -5/Extension | Disrupted transfer network 6059 | -5/Extension | Rescued a captive Derelict 6060 | -5/Extension | Rescued a captive Derelict 6190 | -5/Extension | Rescued A7 6282 | -5/Extension | Rescued a captive Derelict 6293 | -5/Extension | Rescued a captive Derelict 6295 | -5/Extension | Rescued a captive Derelict 6326 | -5/Extension | Discovered new exit (range 10) 6327 | -5/Extension | Discovered new exit (range 6) 6335 | -5/Extension | Entered Cetus 6335 | -5/Cetus | Accompanied by 3 allies (A7) 6340 | -5/Cetus | Acquired a Cetus Manufacturing Module code from A7 6347 | -5/Cetus | Spotted Cetus Guard 6347 | -5/Cetus | Spotted Cetus Guard 6347 | -5/Cetus | Spotted Cetus Guard 6347 | -5/Cetus | Spotted Cetus Guard 6367 | -5/Cetus | Allies destroyed Cetus Guard 6367 | -5/Cetus | Allies destroyed Cetus Guard 6371 | -5/Cetus | Destroyed Cetus Guard 6371 | -5/Cetus | Allies destroyed Cetus Guard 6401 | -5/Cetus | Lost 6 parts (1p3n1u1w) 6431 | -5/Cetus | Started Cetus Manufacturing Module 6456 | -5/Cetus | Manufactured an Enhanced Grunt 6481 | -5/Cetus | Manufactured an Enhanced Grunt 6506 | -5/Cetus | Manufactured an Enhanced Grunt 6531 | -5/Cetus | Manufactured an Enhanced Grunt 6555 | -5/Cetus | Discovered new exit (range 22) 6556 | -5/Cetus | Manufactured an Enhanced Grunt 6591 | -5/Cetus | Spotted Cetus Guard 6591 | -5/Cetus | Spotted Cetus Guard 6591 | -5/Cetus | Spotted Cetus Guard 6591 | -5/Cetus | Spotted Cetus Guard 6593 | -5/Cetus | Discovered new exit (range 22) 6609 | -5/Cetus | Found Prototype Device 6613 | -5/Cetus | Allies destroyed Cetus Guard 6614 | -5/Cetus | Allies destroyed Cetus Guard 6619 | -5/Cetus | Allies destroyed Cetus Guard 6647 | -5/Cetus | Met Revision 17 6674 | -5/Cetus | Entered Factory 6674 | -4/Factory | Accompanied by 4 allies (A7) 6674 | -4/Factory | Evolved 2 slots: Utility x2 6708 | -4/Factory | Identified Exp. Thermal Shield 6752 | -4/Factory | Garrison activated, responded to threat 6805 | -4/Factory | Lost 3 allies 6810 | -4/Factory | Lost 4 parts (1p3n) 6995 | -4/Factory | Lost 5 parts (1p2u2w) 7174 | -4/Factory | First assault squad dispatched 7567 | -4/Factory | System corruption reached 10% 7660 | -4/Factory | Core integrity fell below 50% 7690 | -4/Factory | Lost 8 parts (1p2n3u2w) 7856 | -4/Factory | Core integrity fell below 20% 7899 | -4/Factory | Destroyed by G-67 Veteran with Plasma Rifle Last Messages --------------- 07883_ G-73 Enforcer shuts down. 07883_ Door malfunctions. 07883_ P-70 Sage shuts down. 07885_ R-10 Processor collects Corrupted Flexi-carbon Leg. 07886_ Neutrino Reactor explodes. 07886_ System corrupted: Matter fused (-7). 07886_ Neutrino Reactor explodes. 07886_ G-73 Enforcer destroyed. 07888_ R-10 Processor collects Adv. Heat Sink. 07888_ Slug penetrates Wall. 07889_ Com. Wheel destroyed. 07891_ R-10 Processor collects Corrupted Phase Gun. 07894_ R-10 Processor collects Energy Well. 07895_ KE Penetrator destroyed. 07896_ Slug penetrates Wall. 07896_ Neutron Cannon destroyed. 07898_ Med. Matter Pod destroyed. 07899_ Penetrated by Slug. 07899_ Slug penetrates Wall. 07899_ Flexi-carbon Leg destroyed. Map ----- +----------------------------------------------------+ | "%"! |%=!=%[*=![=% +%["" #??????????????????? | | ###################!*"" /#??????????????????? | | #?????????????????#[=! = #??????????????????? | | #?????????????????#! = /!#??????????????????? | | #?????????????????###########??????????????????? | | ########?????????????????????????????????????????? | | ! #?????????????????????????????????????????? | | #?????????????????????????????????????????? | | ##????????????????????????????????????????? | | ##????????????????????????????????????????? | | ##????????????????????????????????????????? | | ####?####?????????????????????????????????? | | # ## #?????????????????????????????????? | | ###### ###????????????????????????????????? | | ####################???????????????????????????? | | # % ##??????????????????????????? | | # ###????????????????????????? | | # #?# ????????????????????????? | | # =% #?# ????????????????????????? | | #%[ #?# ????????????????????????? | | |#** #?# ????????????????????????? | | *%#!!% #?# #???????????????????????? | | % +![ #?# #???????????????????????? | | %%##################/#?#*############????????????? | | %=T# ! #???????# #?#%= #????????????? | | ! ## #####???????# #?# @ #????????????? | | ##?# #???????????# #?# #????????????? | | ################## ### hh #????????????? | | #g #????????????? | | #p[ #????????????? | | " / %Y #????????????? | | "% """ """ """ # #????????????? | | " """ """ """ # #????????????? | | """ """ """ # #????????????? | | / "" "" # "" #????????????? | | !! "" "" """# #????????????? | | ! Y"######;#######????????????? | | """#?????# #?????????????????? | | ???????# #????????????????? | | ??????????# #???????????????? | | ############# ????????????# ???????????????? | | #???????????# ??????????????#??????????????? | | #???????????# ?????????????????????????????? | | #???????????????????????????????????????????? | | #???????????????????????????????????????????? | | "" #???????????????????????????????????????????? | | #???????????????????????????????????????????? | | #???????????????????????????????????????????? | | ? #???????????????????????????????????????????? | | "?" #???????????????????????????????????????????? | +----------------------------------------------------+ Best States ------------- Heat Dissipation 81 Energy Generation 41 Energy Capacity 675 Matter Stores 300 Matter Capacity 400 Sight Range 22 Robot Scan Range 16 Terrain Scan Density 10 ECM Strength 2 Power Amplification 20 Additional Mass Support 9 Armor Coverage 225 Resistance: TH 30 Resistance: EM 25 Propulsion Shielding 33 Melee Speed Boost 40 Evasion (%) 55 Melee Accuracy 14 Recoil Reduction 5 Kinecelleration 30 Item Schematics ----------------- None Robot Schematics ------------------ None Fabricated ------------ Nothing Alien Tech Used ----------------- None Achievements -------------- Collateral Damage Project G-00 Revising The Future Challenges ------------ None Game ------ Seed SupersonicBlastMagmablaster Manual? 0 Play Time 02:06:30 Cumulative 93.9 hours Start 2024.03.07 @ 20:20:35 End 2024.03.09 @ 18:50:46 Sessions 4 Manual Loads 0 Difficulty Rogue Special Mode None Game No. 100 Rogue 100 Adventurer 0 Explorer 0 Win Type - Total 0 Types 0/0/0/0/0/0/0/0/0 Lore% 48 Gallery% 54 Achievement% 39 Wizard Run 0 Options --------- Layout 1 ASCII 0 Keyboard 0 Movement Mouse Keybinds 0 Fullscreen 2 Font 32/Tamsyn Map View 77x35 Zoom Use 0% Tactical HUD 1 Map Filters NONE Filters NONE Steam 1 RUN: fc86e249-40ba-4444-8ffc-59c20bb56064